Cogmind - Beta 10.1 @@@ ROGUE MODE // 2020.10.04 @ 04:08:16 Player: JackNine Result: Destroyed by D-53 Grenadier with Mini Grenade Launcher Performance ------------- Evolutions (0) 0 Regions Visited (2) 400 Robots Destroyed (22) 110 Value Destroyed (431) 431 Prototype IDs (0) 0 Alien Tech Used (0) 0 Bonus (0) 0 TOTAL SCORE: 941 Bonus ------- None Cogmind --------- Core Integrity 0/250 Matter 164/300 Energy 100/100 System Corruption 1% Temperature Cool (110) Movement Core (1200) Ox23 Location -10/Mines Parts ------- > --- POWER (1) -------- (None) > --- PROPULSION (2) --- (None) > --- UTILITY (2) ------ High-capacity Storage Unit High-capacity Storage Unit > --- WEAPON (2) ------- Autogun Autogun > --- INVENTORY (20) --- Improved Ion Engine Light Treads Aluminum Leg Aluminum Leg Heat Sink Small Storage Unit High-capacity Storage Unit High-capacity Storage Unit Structural Scanner Weapon Shielding Light Armor Plating Sensor Drone Bay Beam Cannon Autogun Autogun Grenade Launcher Rocket Launcher Peak State ------------ > --- POWER ------------ Improved Ion Engine > --- PROPULSION ------- Light Treads Light Treads > --- UTILITY ---------- High-capacity Storage Unit High-capacity Storage Unit > --- WEAPON ----------- Autogun Bore Cannon > --- INVENTORY -------- Improved Ion Engine Light Treads Aluminum Leg Aluminum Leg Heat Sink Small Storage Unit High-capacity Storage Unit High-capacity Storage Unit Structural Scanner Weapon Shielding Light Armor Plating Sensor Drone Bay Beam Cannon Autogun Autogun Autogun Grenade Launcher Rocket Launcher [Rating: 16] Favorites ----------- Power Improved Ion Engine Engine Improved Ion Engine Propulsion Light Treads Treads Light Treads Utility High-capacity Storage Unit Storage High-capacity Storage Unit Weapon Autogun Ballistic Gun Autogun Ballistic Cannon Bore Cannon Launcher Rocket Launcher Build | -11 -10 -10 ------- Run | Scr Mat Min Slots Evolved . | . . . Power . | . . . Propulsion . | . . . Utility . | . . . Weapon . | . . . Parts Attached 21 | 7 9 5 Power 2 | 1 1 . Engine 2 | 1 1 . Core . | . . . Reactor . | . . . Propulsion 4 | 2 2 . Treads 4 | 2 2 . Leg . | . . . Wheel . | . . . Hover . | . . . Flight . | . . . Utility 4 | 2 2 . Device . | . . . Storage 4 | 2 2 . Processor . | . . . Hackware . | . . . Protection . | . . . Artifact . | . . . Weapon 11 | 2 4 5 Energy Gun . | . . . Energy Cannon . | . . . Ballistic Gun 8 | 2 4 2 Ballistic Cannon 2 | . . 2 Launcher 1 | . . 1 Special Weapon . | . . . Impact Weapon . | . . . Slashing Weapon . | . . . Piercing Weapon . | . . . Special Melee Weapon . | . . . Unidentified Prototypes . | . . . Parts Lost 4 | . . 4 Power 1 | . . 1 Propulsion 2 | . . 2 Utility . | . . . Weapon 1 | . . 1 Highest Loss Streak 4 | . . 4 Average Slot Usage (%) 99 | . 99 99 Engine 14 | . 14 14 Treads 27 | . 27 27 Storage 28 | . 28 28 Ballistic Gun 25 | . 27 20 Launcher 1 | . . 5 Naked Turns . | . . . Heaviest Build 83 | 17 77 83 Greatest Support 40 | 40 40 40 Greatest Overweight (x) 2 | . 1 2 Average Overweight (x) . | . . 1 Largest Inventory Capacity 20 | 8 20 20 Average Capacity 15 | 6 14 20 Most Carried 18 | 4 13 18 Average Carried 10 | 2 9 15 Final Capacity 20 | 8 20 20 Final Carried 17 | 4 13 17 Class Distribution -------------------- 65% | Hauler-Mutant 34% | Mutant Dominant Class ---------------- Hauler-Mutant | -10/Materials Hauler-Mutant | -10/Mines Resources | -11 -10 -10 ----------- Run | Scr Mat Min Matter Collected 691 | 282 331 78 Remotely . | . . . Salvage Created 560 | 92 378 90 Parts 34 | 3 17 14 Haulers Intercepted . | . . . Recyclers Shooed . | . . . Parts Field Recycled . | . . . Retrieved Matter . | . . . Parts Self-Destructed . | . . . Prevented . | . . . Kills | -11 -10 -10 ------- Run | Scr Mat Min Combat Hostiles Destroyed 20 | . 13 7 Guns 17 | . 13 4 AOE 3 | . . 3 Classes Destroyed 5 | 1 3 1 Worker 1 | . 1 . Recycler 1 | 1 . . Swarmer 12 | . 6 6 Grunt 7 | . 7 . Demolisher 1 | . . 1 Best Kill Streak 5 | 1 5 3 Combat Bots Only 4 | . 4 3 Max Kills in Single Turn 2 | 1 2 2 Gunslinging . | . . . Exploded 2 | . . 2 Melee . | . . . Uniques/NPCs Destroyed . | . . . Combat | -11 -10 -10 -------- Run | Scr Mat Min Damage Taken 1502 | . 560 942 Core 259 | . 75 184 Absorbed by Shields . | . . . Core Remaining (%) 100 | 100 . . Volleys Fired 58 | 2 40 16 Largest 2 | 2 2 2 Hottest 80 | 40 46 80 Shots Fired 113 | 4 80 29 Gun 104 | 4 80 20 Cannon 6 | . . 6 Launcher 3 | . . 3 Special . | . . . Kinetic 110 | 4 80 26 Thermal . | . . . Explosive 3 | . . 3 Electromagnetic . | . . . Robot Hit Streak 15 | 1 15 3 Robot Miss Streak 4 | 2 3 4 Penetration Max . | . . . Secondary Targets 1 | . 1 . Max Gunslinging Chain 1 | . 1 . Shots Hit Robots 72 | 1 57 14 Core Hits 33 | 2 20 11 Critical Hits 2 | . 1 1 Critical Kills . | . . . Critical Parts Destroyed 1 | . 1 . Melee Attacks . | . . . Impact . | . . . Slashing . | . . . Piercing . | . . . Sneak Attacks . | . . . Combat Hostiles . | . . . Follow-up Attacks . | . . . Damage Inflicted 1220 | 27 791 402 Guns 1005 | 27 791 187 Cannons 18 | . . 18 Explosions 197 | . . 197 Melee . | . . . Ramming . | . . . Kinetic 1023 | 27 791 205 Thermal . | . . . Explosive 197 | . . 197 Electromagnetic . | . . . Impact . | . . . Slashing . | . . . Piercing . | . . . Highest Corruption 1 | . 1 1 Average Corruption 1 | . 1 1 Corruption Purged . | . . . Effects 2 | . . 2 Message Errors 1 | . . 1 Targeting Errors 1 | . . 1 Overload Shots . | . . . Overflow Damage . | . . . Projectiles . | . . . Explosions . | . . . Melee . | . . . Knockbacks 1 | . . 1 Impact . | . . . Kinetic 1 | . . 1 Secondary . | . . . Self-Inflicted Damage . | . . . Shots . | . . . Rammed . | . . . Targets Rammed . | . . . Kicked . | . . . Crushed . | . . . Highest Temperature 147 | . 41 147 Average Temperature 43 | . 12 71 Received Heat Transfer 216 | . 216 . Siege Activations . | . . . Robots Corrupted . | . . . Combat Hostiles . | . . . Parts Fried . | . . . Impact Corruptions . | . . . Robots Melted . | . . . Combat Hostiles . | . . . Parts Melted . | . . . Heat Transferred . | . . . Parts Sabotaged . | . . . Parts Stolen . | . . . Parts Stripped . | . . . Power Chain Reactions . | . . . Missiles Intercepted . | . . . Alert | -11 -10 -10 ------- Run | Scr Mat Min Peak Influence 222 | 5 222 167 Initial 27 | . 3 27 Average 89 | 1 101 78 Maximum Alert Level 1 | . 1 . Low Security (%) 92 | 100 88 100 Level 1 7 | . 11 . Level 2 . | . . . Level 3 . | . . . Level 4 . | . . . Level 5 . | . . . High Security . | . . . Max Security . | . . . Squads Dispatched 2 | . 2 . Investigation . | . . . Extermination . | . . . Reinforcement 2 | . 2 . Assault . | . . . Garrison . | . . . Intercept . | . . . Construction Impeded . | . . . Haulers Reinforced . | . . . Stealth | -11 -10 -10 --------- Run | Scr Mat Min Distress Signals 1 | . 1 . Communications Jammed . | . . . Distress Signals . | . . . Times Spotted 32 | . 24 8 Peak Tracking Total 6 | . 6 3 Tactical Retreats . | . . . Traps | -11 -10 -10 ------- Run | Scr Mat Min Traps Triggered 1 | . 1 . Indirectly . | . . . Trap Hack Attempts . | . . . Triggered . | . . . Disarmed . | . . . Reprogrammed . | . . . Reused . | . . . Traps Extracted . | . . . Installed . | . . . Triggered . | . . . Machines | -11 -10 -10 ---------- Run | Scr Mat Min Machines Disabled . | . . . Max in Single Turn . | . . . Machines Sabotaged . | . . . Garrisons Compromised . | . . . Overloaded Fab Kills . | . . . Fab Network Shutdowns . | . . . Hacking | -11 -10 -10 --------- Run | Scr Mat Min Machines Accessed 8 | . 7 1 Terminals 6 | . 6 . Fabricators . | . . . Repair Stations 1 | . 1 . Recycling Units . | . . . Scanalyzers . | . . . Garrison Access . | . . . Total Hacks 20 | . 19 1 Successful 12 | . 11 1 Failed 8 | . 8 . Catastrophic 2 | . 2 . Database Lockouts . | . . . Manual 7 | . 7 . Terminals 14 | . 14 . Fabricators . | . . . Repair Stations 5 | . 5 . Recycling Units . | . . . Scanalyzers . | . . . Garrison Access . | . . . Terminal Hacks 6 | . 5 1 Robot Analysis 2 | . 2 . Open Door 1 | . . 1 Locate Traps 2 | . 2 . Hauler Manifests 1 | . 1 . Fabricator Hacks . | . . . Repair Station Hacks 4 | . 4 . Scan Component 2 | . 2 . Repair 2 | . 2 . Recycling Unit Hacks . | . . . Scanalyzer . | . . . Garrison Access Hacks . | . . . Unauthorized Hacks 2 | . 2 . Terminals 2 | . 2 . Botnet 2 | . 2 . Fabricators . | . . . Repair Stations . | . . . Recycling Units . | . . . Scanalyzers . | . . . Garrison Access . | . . . Data Cores Recovered . | . . . Used . | . . . Hacking Detections 7 | . 7 . Full Trace Events . | . . . Feedback Events . | . . . Feedback Blocked . | . . . Robot Schematics Acquired . | . . . Robots Built . | . . . Matter . | . . . Time . | . . . Total Robot Build Rating . | . . . Part Schematics Acquired . | . . . Parts Built . | . . . Matter . | . . . Time . | . . . Total Part Build Rating . | . . . Parts Repaired 2 | . 2 . Time 58 | . 58 . Parts Recycled . | . . . Recycled Matter . | . . . Retrieved Matter . | . . . Retrieved Components . | . . . Parts Scanalyzed . | . . . Part Schematics Acquired . | . . . Parts Damaged . | . . . Bothacking | -11 -10 -10 ------------ Run | Scr Mat Min Used RIF Installer . | . . . Robots Hacked . | . . . Non-combat . | . . . Combat . | . . . Robot Hacks Applied . | . . . Relay Couplers Released . | . . . Robots Rewired . | . . . Allies Hacked . | . . . Hacks Repelled . | . . . Allies | -11 -10 -10 -------- Run | Scr Mat Min Total Allies . | . . . Largest Group . | . . . Highest-Rated Group . | . . . Highest-Rated Ally . | . . . Total Orders . | . . . Ally Attacks . | . . . Total Damage . | . . . Kills . | . . . Allies Corrupted . | . . . Allies Melted . | . . . Intel | -11 -10 -10 ------- Run | Scr Mat Min Robot Analysis Total 2 | . 2 . Derelict Logs Recovered 1 | . . 1 Drone Launches . | . . . Drone Recoveries . | . . . Exploration | -11 -10 -10 ------------- Run | Scr Mat Min Turns Passed 1598 | 79 1054 465 Spaces Moved 747 | 39 485 223 Core 3 | 3 . . Treads 744 | 36 485 223 Legs . | . . . Wheels . | . . . Hover . | . . . Flight . | . . . Fastest Speed 50 | 50 160 180 Average Speed 173 | 151 171 182 Slowest Speed 200 | 160 180 200 Overloaded Moves . | . . . Propulsion Burnouts . | . . . Robots Hopped . | . . . Cave-ins Triggered . | . . . Exploration Rate (%) 50 | 4 96 52 Regions Visited 2 Branch Regions 1 Pre-discovered Areas . | . . . Known Exits Taken . | . . . Unknown Exits Taken 2 | 1 1 . Scrap Searched 1 | . . 1 Spaces Dug . | . . . Terrain Destroyed 34 | . . 34 Melee . | . . . Projectile 4 | . . 4 AOE 30 | . . 30 Terrain Rammed . | . . . Walls Destroyed . | . . . Machines Disabled . | . . . Actions | -11 -10 -10 --------- Run | Scr Mat Min Total 947 | 52 640 255 Wait 93 | 1 86 6 Move 745 | 38 484 223 Hop . | . . . Pick Up 21 | 4 12 5 Fast Attach 9 | 7 2 . Attach 1 | . . 1 Detach . | . . . Swap 11 | . 7 4 Drop 9 | . 9 . Fire 58 | 2 40 16 Melee . | . . . Ram . | . . . Kick . | . . . Crush . | . . . Escape Stasis . | . . . Rewire . | . . . Trap . | . . . Miscellaneous . | . . . Route ------- -11/Scrapyard -10/Materials (discovered 4 exits: [*Mat x3] / *Min) -10/Mines (discovered 1 exit: [*Mat]) History --------- Turn | Location | Event 9 | -11/Scrapyard | Discovered new exit (range 14) 80 | -11/Scrapyard | Entered Materials 305 | -10/Materials | Build established: Mutant 378 | -10/Materials | Discovered new exit (range 11) 652 | -10/Materials | Discovered new exit (range 3) 781 | -10/Materials | Discovered new exit (range 15) 848 | -10/Materials | Build established: Hauler-Mutant 851 | -10/Materials | Repaired Lgt. Treads 885 | -10/Materials | Repaired Autogun 1042 | -10/Materials | Discovered new exit (range 16) 1134 | -10/Materials | Entered Mines 1246 | -10/Mines | A weapon hastily lodged in a ceiling crevice suddenly fell to the ground 1376 | -10/Mines | Received a Rocket Launcher from a helpful Derelict 1392 | -10/Mines | Discovered new exit (range 13) 1545 | -10/Mines | Assembled infested the area 1550 | -10/Mines | Assisted by a Guerilla fighting off Assembled 1554 | -10/Mines | Found the Drone Emporium 1567 | -10/Mines | Found Prototype Device 1576 | -10/Mines | Core integrity fell below 50% 1593 | -10/Mines | Core integrity fell below 20% 1599 | -10/Mines | Destroyed by D-53 Grenadier with Mini Grenade Launcher Last Messages --------------- 01571_ K-01 Serf collects debris. 01573_ TB-OC2(g) destroyed. 01575_ K-01 Serf collects debris. 01577_ System corrupted: Bore Cannon targeting data glitched. 01580_ The unstable cave ceiling collapses. 01580_ K-01 Serf collects debris. 01580_ HV Slug penetrates Wall. 01583_ HV Slug penetrates D-53 Grenadier. 01583_ D-53 Grenadier suffers critical hit. 01583_ D-53 Grenadier knocked back. 01584_ K-01 Serf collects debris. 01586_ HV Slug penetrates Wall. 01587_ The unstable cave ceiling collapses. 01587_ Bore Cannon destroyed. 01588_ Lgt. Treads destroyed. 01589_ D-53 Grenadier destroyed. 01594_ K-01 Serf collects debris. 01595_ Lgt. Treads destroyed. 01597_ Imp. Ion Engine destroyed. 01598_ K-01 Serf collects debris. Map ----- +----------------------------------------------------+ | ?????????########## #????????????????????????? | | ?????????####????## #????????????????????????? | | ###?????## ##??## ##????????????????????????? | | =#?????# #### ##?????????????????????????? | | #=#????## ##?????????????????????????? | | #=#???## #?????????????????????????? | | # ##### ## #?????????????????????????? | | # #### #?????????????????????????? | | # ##??# #?????????????????????????? | | ## ## #???## ???????????????????????? | | ?# ## #???## ## #?????????????????????? | | ?# ## #????## ##?? ????????????????????? | | ?# ### #?????####???? ???????????????????? | | ?# #?### #?????????????##???????????????????? | | ?# #???## #??????????????????????????????????? | | ?# #????# ##??????????????????????????????????? | | ?# #????# #???????????????????????????????????? | | ?# #????# #???????????????????????????????????? | | ?# #????# #???????????????????????????????????? | | ?# #????## #??????????#####????????????????????? | | ?# #??????# #????????### ###??????????????????? | | ?# #??????? #???????## ##?????????????????? | | ?# #???#### #??????## #?????????????????? | | ?# #???# #??????# #?????????????????? | | ?# #???# ????????# # #??????????????? | | ?# #??## #?????????# @ #??????????????? | | ?# #### #????????## ##???????????????? | | ## ####????#; #????????????????? | | ###?#; = # #????????????????? | | #### dk t ##????????????????? | | ### #### ### #????????????? | | #?####??## % # ##????????????? | | ##????????## #### ;; ##?????????????? | | ###???????####??# ### #########??????????????? | | #?????????????# #?####??????????????????????? | | #?????????????# #???????????????????????????? | | ###?????????????# #???????????????????????????? | | #?????????????# #???????????????????????????? | | [ #?????????????# #???????????????????????????? | | #????????????? #???????????????????????????? | | ##?????????????####???????????????????????????? | | #?????????????????????????????????????????????? | | #?????????????????????????????????????????????? | | ##?????????????????????????????????????????????? | | ##?????????????????????????????????????????????? | | #?????????????????????????????????????????????? | | #?????????????????????????????????????????????? | | ##?????????????????????????????????????????????? | | ##??????????????????????????????????????????????? | | ##???????????????????????????????????????????????? | +----------------------------------------------------+ Best States ------------- Heat Dissipation 25 Energy Generation 12 Energy Capacity 265 Matter Stores 300 Matter Capacity 300 Sight Range 16 Terrain Scan Density 10 Evasion (%) 40 Recoil Reduction 2 Item Schematics ----------------- None Robot Schematics ------------------ None Fabricated ------------ Nothing Alien Tech Used ----------------- None Achievements -------------- None Challenges ------------ None Game ------ Seed MomentumMassHumpback Manual? 0 Play Time 00:13:51 Cumulative 164.3 hours Start 2020.10.04 @ 03:53:43 End 2020.10.04 @ 04:08:16 Sessions 1 Manual Loads 0 Difficulty Rogue Special Mode None Game No. 108 Rogue 108 Adventurer 0 Explorer 0 Win Type - Total 4 Types 3/0/1/0/0/0/0/0/0 Lore% 67 Gallery% 80 Achievement% 66 Wizard Run 0 Options --------- ASCII 0 Keyboard 1 Movement Numpad Keybinds 0 Fullscreen 2 Font 12/Terminus Map View 83x54 Tactical HUD 1 Map Filters NONE Filters NONE Steam 1 RUN: 4f4e66de-f1c7-46fa-b9d7-2c2ed0ff8294